bitfinex-derivatives/quotes_SOLF0:USTF0_20250518
["timestamp","ask_amount","ask_price","bid_price","bid_amount"]
[1747601492152,5.9822,167.09,167.05,5.9831]
[1747601492453,5.9822,167.09,167.03,72.72]
[1747601492853,5.9817,167.1,167.06,5.9829]
[1747601493148,72.64,167.15,167.03,72.72]
[1747601493352,1.8979,167.14,167.03,151.2839]
[1747601493549,1.8979,167.14,167.02,5.47328808]
[1747601493853,18.26817963,167.14,167.02,5.47328808]
[1747601494054,18.26817963,167.14,167.03,72.72]
[1747601496156,5.9837,167.04,167.03,72.72]
[1747601497754,3.9452,167.09,167.03,72.72]
[1747601498352,3.9452,167.09,167.0,517.04]
[1747601498553,3.9452,167.09,166.99,72.72]
[1747601499151,3.9452,167.09,167.0,5.985]
[1747601499351,3.9452,167.09,166.99,72.72]
[1747601499553,5.9835,167.05,166.99,72.72]
[1747601499856,5.9835,167.05,167.01,5.9845]
[1747601500053,3.9452,167.09,167.01,5.9845]
[1747601500350,5.55598616,167.11,167.02,589.54]
[1747601500556,5.55598616,167.11,167.03,1.8875]
[1747601500855,5.55598616,167.11,167.04,72.72]
[1747601502358,5.9812,167.11,167.06,5.9829]
[1747601502659,135.40330877,167.17,167.06,5.9829]
[1747601502956,135.40330877,167.17,167.05,5.47328808]
[1747601503358,5.9815,167.11,167.06,5.9827]
[1747601503860,5.9809,167.12,167.05,5.47328808]
[1747601504156,135.40330877,167.17,167.05,5.47328808]
[1747601504456,5.9804,167.14,167.1,5.9814]
[1747601504658,72.5,167.18,167.1,72.52]
[1747601505160,5.9807,167.13,167.1,72.52]
[1747601505353,72.5,167.18,167.1,72.52]
[1747601505959,5.9808,167.13,167.1,72.52]
[1747601506159,72.5,167.18,167.1,72.52]
[1747601506454,5.9805,167.13,167.1,72.52]
[1747601506861,72.5,167.18,167.1,72.52]
[1747601507062,72.5,167.18,167.05,5.47328808]
[1747601507266,72.5,167.18,167.06,72.52]
[1747601507562,88.87027963,167.18,167.06,72.52]
[1747601507757,5.982,167.09,167.06,72.52]
[1747601507956,88.87027963,167.18,167.06,72.52]
[1747601508362,16.37027963,167.14,167.06,72.52]
[1747601508553,149.0281,167.13,167.06,72.52]
[1747601508964,149.0281,167.13,167.02,522.9843]
[1747601509259,1.8722,167.12,167.03,72.52]
[1747601509560,5.9835,167.05,167.03,72.52]
[1747601509760,1.8722,167.12,167.03,72.52]
[1747601510465,5.9837,167.04,167.03,72.52]
[1747601510868,1.8722,167.12,167.03,72.52]
[1747601511167,5.9825,167.08,167.04,5.9836]
[1747601511469,1.8722,167.12,167.03,72.52]
[1747601511656,5.982,167.09,167.05,5.983]
[1747601511859,4.0281,167.13,167.03,72.52]
[1747601512060,72.46,167.15,167.03,72.52]
[1747601512359,72.46,167.15,167.04,1.8829]
[1747601512560,2.066,167.18,167.05,72.44]
[1747601512561,5.55598616,167.14,167.05,72.44]
[1747601512758,11.53628616,167.14,167.1,5.9813]
[1747601512965,5.55598616,167.14,167.1,72.52]
[1747601513361,5.9805,167.13,167.1,72.52]
[1747601513567,5.55598616,167.14,167.1,72.52]
[1747601513767,5.55598616,167.14,167.07,72.52]
[1747601515167,5.55598616,167.14,167.07,78.5025]
[1747601515468,5.55598616,167.14,167.07,72.52]
[1747601515664,7.62198616,167.18,167.07,78.5025]
[1747601516268,5.9814,167.11,167.07,78.5025]
[1747601516572,7.62198616,167.18,167.07,72.52]
[1747601516769,5.9811,167.12,167.07,72.52]
[1747601517170,80.04198616,167.18,167.07,72.52]
[1747601517467,5.982,167.09,167.07,72.52]
[1747601517658,72.52,167.16,167.05,5.9831]
[1747601517858,72.52,167.16,167.06,72.52]
[1747601518456,5.9812,167.11,167.06,72.52]
[1747601518871,5.9812,167.11,167.07,5.9825]
[1747601519265,5.9816,167.1,167.07,5.9825]
[1747601519668,144.92,167.16,167.06,72.52]
[1747601519873,5.9826,167.07,167.06,72.52]
[1747601520567,5.984,167.03,167.02,5.47328808]
[1747601520871,74.3206,167.09,167.02,5.47328808]
[1747601521772,5.984,167.03,167.02,5.47328808]
[1747601521973,74.3206,167.09,167.0,72.52]
[1747601522267,5.9847,167.01,167.0,72.52]
[1747601522472,74.3206,167.09,167.0,72.52]
[1747601523072,74.3206,167.09,167.01,5.9847]
[1747601523274,74.3206,167.09,167.0,72.52]
[1747601523776,74.3206,167.09,166.99,72.52]
[1747601524175,5.9851,167.0,166.99,72.52]
[1747601524368,74.3206,167.09,166.99,72.52]
[1747601525064,5.985,167.01,166.99,72.52]
[1747601525273,74.3206,167.09,166.99,72.52]
[1747601526271,5.985,167.01,166.99,72.52]
[1747601526771,74.3206,167.09,166.99,72.52]
[1747601527578,5.984,167.04,167.0,5.9849]
[1747601529284,74.3206,167.09,166.99,72.52]
[1747601529782,1.9206,167.09,166.99,72.52]
[1747601529983,5.9835,167.05,167.01,5.9846]
[1747601530283,72.36,167.08,167.01,5.9846]
[1747601530484,72.36,167.08,167.02,5.9844]
[1747601530878,1.9206,167.09,167.02,5.9844]
[1747601531383,1.9206,167.09,166.99,72.52]
[1747601531989,5.9835,167.05,167.01,5.9847]
[1747601532484,5.9837,167.04,167.01,5.9847]
[1747601532682,1.9206,167.09,166.99,72.52]
[1747601532880,5.983,167.06,166.99,72.52]
[1747601533283,1.9206,167.09,166.99,72.52]
[1747601533784,1.9206,167.09,167.01,5.9845]
[1747601534086,1.9206,167.09,166.99,72.52]
[1747601534486,1.9206,167.09,167.02,5.9841]
[1747601535380,1.9206,167.09,167.04,5.9836]
[1747601535582,72.54,167.12,167.04,72.36]
[1747601535786,79.81008616,167.13,167.04,72.36]
[1747601535982,79.81008616,167.13,167.04,78.3436]
[1747601536286,5.9824,167.08,167.04,78.3436]
[1747601536689,79.81008616,167.13,166.98,237.32521115]
[1747601536885,79.81008616,167.13,166.99,144.7]
[1747601537281,79.81008616,167.13,167.01,5.9845]
[1747601537898,79.81008616,167.13,167.0,5.985]
[1747601538186,5.9843,167.03,167.01,72.36]
[1747601538387,72.32,167.08,167.01,72.36]
[1747601538691,5.9836,167.05,167.01,72.36]
[1747601538889,5.9836,167.05,167.02,5.9843]
[1747601539083,5.9836,167.05,167.01,72.36]
[1747601539283,5.9837,167.04,167.01,72.36]
[1747601539785,5.9837,167.04,167.01,78.3445]
[1747601540584,5.9833,167.06,167.02,5.9844]
[1747601540791,72.32,167.08,167.01,72.36]
[1747601541087,72.36,167.1,167.01,72.36]
[1747601541292,5.9821,167.09,167.01,72.36]
[1747601541693,5.9817,167.1,167.06,5.9827]
[1747601541888,7.47008616,167.13,167.04,72.3]
[1747601542292,7.47008616,167.13,167.05,5.9831]
[1747601542598,7.47008616,167.13,167.05,78.3431]
[1747601542787,5.9819,167.1,167.06,5.9829]
[1747601543294,5.9819,167.09,167.06,5.9829]
[1747601543490,5.9819,167.09,167.05,72.36]
[1747601543491,7.47008616,167.13,167.05,72.36]
[1747601543992,7.47008616,167.13,167.05,78.343]
[1747601544293,7.47008616,167.13,167.05,72.36]
[1747601545397,72.36,167.14,167.05,72.36]
[1747601545902,72.36,167.14,167.05,78.3431]
[1747601546398,72.36,167.14,167.05,72.36]
[1747601546995,5.9827,167.07,167.05,72.36]
[1747601547695,72.36,167.14,167.05,72.36]
[1747601549297,5.9819,167.09,167.05,78.3432]
[1747601550399,5.9823,167.08,167.05,78.3432]
[1747601550600,72.36,167.14,167.05,72.36]
[1747601551594,5.982,167.09,167.05,78.3431]
[1747601551798,5.982,167.09,167.05,72.36]
[1747601552298,5.982,167.09,167.05,78.3432]
[1747601552598,5.9824,167.08,167.05,72.36]
[1747601553198,82.57635617,167.14,167.05,72.36]
[1747601553998,82.57635617,167.14,167.03,5.9839]
[1747601554699,88.13234233,167.14,167.03,5.9839]
[1747601555603,88.13234233,167.14,167.01,144.56]
[1747601555900,77.75598616,167.14,167.02,10.21635617]
[1747601556090,5.9819,167.09,167.02,12.26535617]
[1747601556291,77.75598616,167.14,167.02,12.26535617]
[1747601556803,5.9818,167.1,167.06,5.9827]
[1747601556999,5.9818,167.1,167.06,78.3227]
[1747601557906,5.9819,167.09,167.06,78.3227]
[1747601560301,5.9819,167.09,167.06,72.34]
[1747601560801,72.2,167.14,167.06,72.34]
[1747601561104,82.41635617,167.14,167.06,72.34]
[1747601561402,5.9826,167.07,167.06,72.34]
[1747601562504,5.983,167.06,167.03,11.45718808]
[1747601562800,5.983,167.06,167.03,83.61718808]
[1747601563703,5.983,167.06,167.03,78.1439]
[1747601564200,87.97234233,167.14,167.01,13.51358808]
[1747601564396,87.97234233,167.14,167.02,72.16]
[1747601565202,5.9835,167.05,167.02,72.16]
[1747601565406,5.9835,167.05,167.02,78.1443]
[1747601567595,5.55598616,167.13,167.02,72.16]
[1747601568104,5.55598616,167.13,167.02,82.37635617]
[1747601568297,5.9822,167.09,167.05,5.9832]
[1747601569508,5.9823,167.08,167.05,5.9832]
[1747601569802,5.55598616,167.13,167.05,5.9832]
[1747601570205,5.9821,167.09,167.05,5.9832]
[1747601572114,5.9823,167.08,167.05,5.9832]
[1747601572408,74.0843,167.15,167.05,5.9832]
[1747601573102,74.0843,167.15,167.06,5.9829]
[1747601573303,74.0843,167.15,167.06,78.1429]
[1747601573504,5.9819,167.09,167.06,72.16]
[1747601574410,5.9823,167.08,167.06,72.16]
[1747601575211,5.9826,167.07,167.06,72.16]
[1747601578717,72.16,167.13,167.03,5.47328808]
[1747601578917,2.0547,167.12,167.03,77.63328808]
[1747601579120,2.0547,167.12,167.03,72.16]
[1747601579811,5.983,167.06,167.03,78.144]
[1747601580519,5.9827,167.07,167.04,5.9836]
[1747601581620,10.21635617,167.11,167.02,5.47328808]
[1747601581917,72.0,167.1,167.02,5.47328808]
[1747601582120,2.0547,167.12,167.02,87.68964425]
[1747601583020,5.9823,167.08,167.04,5.9836]
[1747601583212,5.9823,167.08,167.05,72.16]
[1747601583411,5.9829,167.07,167.05,72.16]
[1747601583616,2.0547,167.12,167.05,72.16]
[1747601584121,5.9829,167.07,167.05,72.16]
[1747601585327,2.0547,167.12,167.05,72.16]
[1747601585525,2.0547,167.12,167.06,5.9827]
[1747601585925,5.9817,167.1,167.06,5.9827]
[1747601586313,5.55598616,167.13,167.05,72.16]
[1747601586720,5.55598616,167.13,167.06,5.9829]
[1747601587027,5.9818,167.1,167.06,5.9829]
[1747601587628,5.55598616,167.13,167.05,72.16]
[1747601588022,5.983,167.06,167.05,72.16]
[1747601590428,73.9785,167.11,167.01,77.63328808]
[1747601590731,2.0447,167.1,167.01,77.63328808]
[1747601590927,5.9843,167.03,167.01,77.63328808]
[1747601591228,2.0447,167.1,167.01,77.63328808]
[1747601591624,5.9844,167.02,167.01,72.16]
[1747601592532,5.9841,167.03,167.01,72.16]
[1747601594026,5.9838,167.04,167.01,72.16]
[1747601594432,5.984,167.03,167.01,72.16]
[1747601594632,5.984,167.03,167.01,71.92]
[1747601595238,5.9844,167.02,167.01,71.92]
[1747601595532,2.0324,167.08,167.01,71.92]
[1747601596329,5.9836,167.05,167.01,71.92]
[1747601596935,5.9836,167.05,167.01,77.9044]
[1747601597125,5.9837,167.04,167.01,71.92]
[1747601597331,2.0324,167.08,167.01,71.92]
[1747601597833,5.9836,167.05,167.01,77.9047]
[1747601598035,2.0324,167.08,167.01,71.92]
[1747601598536,5.9837,167.04,167.01,71.92]
[1747601598738,2.0324,167.08,167.01,71.92]
[1747601599034,5.9841,167.03,167.01,71.92]
[1747601599228,2.0324,167.08,167.01,71.92]
[1747601600033,5.9842,167.03,167.01,71.92]
[1747601600336,2.0324,167.08,167.01,71.92]
[1747601600740,5.9842,167.03,167.01,71.92]
[1747601601039,2.0324,167.08,167.01,71.92]
[1747601601242,5.9844,167.02,167.01,71.92]
[1747601601838,5.9842,167.03,167.01,71.92]
[1747601602040,2.0324,167.08,167.01,71.92]
[1747601603340,5.9839,167.04,167.01,71.92]
[1747601603537,2.0324,167.08,167.01,71.92]
[1747601604242,5.9841,167.03,167.01,71.92]
[1747601605342,5.9838,167.04,167.01,71.92]
[1747601606443,5.9841,167.03,167.01,71.92]
[1747601607444,5.9844,167.02,167.01,71.92]
[1747601607641,2.0324,167.08,166.97,522.45328808]
[1747601607941,71.92,167.07,166.97,594.37328808]
[1747601608141,5.9847,167.02,166.97,594.37328808]
[1747601608341,5.9847,167.02,166.98,5.9856]
[1747601608543,71.84,167.09,166.97,594.37328808]
[1747601608735,5.55598616,167.08,166.99,10.21442283]
[1747601608933,5.55598616,167.08,167.05,5.983]
[1747601609135,5.55598616,167.08,167.06,71.92]
[1747601609334,5.55598616,167.08,167.06,71.94]
[1747601610246,5.9826,167.07,167.06,71.94]
[1747601610745,11.53838616,167.08,167.06,71.94]
[1747601611441,5.55598616,167.08,167.05,71.94]
[1747601611745,5.55598616,167.08,166.97,516.98]
[1747601611938,5.9841,167.03,166.98,143.72]
[1747601612138,5.55598616,167.08,166.98,143.72]
[1747601612338,10.21442283,167.09,167.0,5.47328808]
[1747601613246,5.984,167.04,167.0,5.47328808]
[1747601613445,10.21442283,167.09,167.0,5.47328808]
[1747601613844,5.9843,167.03,167.0,5.47328808]
[1747601614847,5.9847,167.01,167.0,5.47328808]
[1747601615650,12.25192283,167.07,166.98,71.92]
[1747601615849,10.21442283,167.04,166.98,71.92]
[1747601616036,10.21442283,167.01,166.96,5.47328808]
[1747601616241,10.21442283,166.98,166.96,5.47328808]
[1747601616542,5.9873,166.94,166.93,7.29771744]
[1747601617438,81.95442283,166.98,166.93,7.29771744]
[1747601617638,2.81450203,166.97,166.93,7.29771744]
[1747601617839,2.81450203,166.96,166.93,7.29771744]
[1747601618036,77.7259,166.98,166.93,7.29771744]
[1747601618239,2.81385049,166.97,166.93,7.29771744]
[1747601618440,77.7259,166.98,166.93,7.29771744]
[1747601618646,8.79827662,166.97,166.93,7.29771744]
[1747601618834,71.74,166.98,166.93,7.29771744]
[1747601619038,2.81207763,166.97,166.93,7.29771744]
[1747601619242,77.7259,166.98,166.93,7.29771744]
[1747601619536,2.81213558,166.97,166.93,7.29771744]
[1747601619742,77.7259,166.98,166.91,71.92]
[1747601620048,71.74,166.98,166.91,71.92]
[1747601620445,71.74,166.98,166.94,5.9872]
[1747601621048,71.74,166.98,166.95,5.9868]
[1747601621255,71.74,166.98,166.91,71.92]
[1747601622152,77.7262,166.98,166.91,71.92]
[1747601622355,71.74,166.98,166.91,71.92]
[1747601622557,2.0314,167.0,166.91,71.92]
[1747601622853,2.0314,167.0,166.92,71.82]
[1747601623053,8.0166,167.0,166.95,5.9866]
[1747601623555,8.0166,167.0,166.92,71.82]
[1747601623754,2.0314,167.0,166.92,71.82]
[1747601624150,2.0314,167.0,166.96,5.9862]
[1747601624354,2.0493,167.03,166.85,22.38907345]
[1747601624551,2.80731893,167.02,166.86,143.58]
[1747601624857,8.79241893,167.01,166.96,5.9864]
[1747601625055,2.80731893,167.0,166.96,5.9864]
[1747601625257,5.9851,167.01,166.96,5.9864]
[1747601625448,2.80736592,167.0,166.96,5.9864]
[1747601625648,5.9851,167.0,166.96,5.9864]
[1747601625954,5.9851,167.0,166.94,71.74]
[1747601626450,75.892,167.03,166.95,5.9868]
[1747601626654,2.80723942,167.02,166.94,71.74]
[1747601626844,73.8093,167.03,166.94,71.74]
[1747601627049,5.9848,167.01,166.94,71.74]
[1747601627556,5.9848,167.01,166.96,5.9863]
[1747601627954,73.8093,167.03,166.94,71.74]
[1747601628152,2.80702306,167.02,166.94,71.74]
[1747601628363,2.80702306,167.01,166.95,5.9866]
[1747601628552,5.9854,167.0,166.95,5.9866]
[1747601628752,5.9854,167.0,166.95,5.9868]
[1747601629455,5.9855,166.99,166.95,5.9868]
[1747601629659,73.8093,167.03,166.95,5.9868]
[1747601629849,2.80720276,167.02,166.96,5.9865]
[1747601630054,73.8093,167.03,166.96,5.9865]
[1747601630355,2.80708102,167.02,166.96,5.9865]
[1747601630550,2.80708102,167.01,166.96,5.9865]
[1747601630747,5.9849,167.01,166.94,71.74]
[1747601630953,94.07034833,254.85,166.94,71.74]
[1747601631159,5.9834,167.05,167.0,5.9849]
[1747601631358,5.55598616,167.07,166.99,71.74]
[1747601631658,5.55598616,167.07,167.0,71.74]
[1747601632254,5.55598616,167.07,167.05,5.983]
[1747601632453,5.55598616,167.07,167.05,77.723]
[1747601632859,71.76,167.13,167.02,1.9749]
[1747601633059,2.80765937,167.12,167.03,71.74]
[1747601633362,2.80765937,167.11,167.02,71.74]
[1747601633655,2.80765937,167.1,167.02,71.74]
[1747601633856,5.9846,167.02,166.97,13.28371744]
[1747601634064,71.74,167.08,166.98,71.74]
[1747601634353,6.72404359,167.07,166.98,71.74]
[1747601634559,2.80854359,167.06,166.98,71.74]
[1747601635051,5.9852,167.0,166.98,71.74]
[1747601635256,77.5912,167.07,166.98,71.74]
[1747601635461,2.80906086,167.06,166.98,71.74]
[1747601635762,2.80906086,167.05,166.98,71.74]
[1747601635954,2.80906086,167.04,166.98,71.74]
[1747601636261,2.80906086,167.03,166.98,71.74]
[1747601636460,5.9855,166.99,166.98,71.74]
[1747601637661,5.9869,166.95,166.94,804.53251659]
[1747601638162,5.9869,166.95,166.94,287.27251659]
[1747601639164,5.9867,166.96,166.94,287.27251659]
[1747601639563,88.11437345,167.04,166.94,287.27251659]
[1747601639862,2.80936165,167.03,166.94,287.27251659]
[1747601640060,2.80936165,167.02,166.94,287.27251659]
[1747601640261,2.80936165,167.01,166.94,287.27251659]
[1747601640463,2.80936165,167.0,166.94,287.27251659]
[1747601640658,88.11437345,167.04,166.94,287.27251659]
[1747601640857,5.9855,166.99,166.94,287.27251659]
[1747601641061,5.9855,166.99,166.94,293.25961659]
[1747601641262,71.74,167.04,166.94,287.27251659]
[1747601641465,2.80874436,167.03,166.94,287.27251659]
[1747601641761,5.9857,166.99,166.94,287.27251659]
[1747601641963,71.74,167.04,166.94,287.27251659]
[1747601642159,2.80876908,167.03,166.94,287.27251659]
[1747601642360,5.9847,167.01,166.94,287.27251659]
[1747601642667,71.74,167.04,166.97,5.9859]
[1747601642858,5.9846,167.02,166.97,77.7259]
[1747601643055,5.9846,167.02,166.97,71.74]
[1747601643459,71.74,167.04,166.97,71.74]
[1747601643663,5.9848,167.01,166.97,71.74]
[1747601644162,5.9844,167.02,166.97,71.74]
[1747601644566,87.81946108,167.07,166.97,71.74]
[1747601644766,2.80908297,167.06,166.97,71.74]
[1747601644968,2.80908297,167.05,166.94,287.27251659]
[1747601645168,5.9857,166.99,166.95,71.74]
[1747601645668,5.9861,166.98,166.95,71.74]
[1747601646067,10.22826108,167.04,166.95,71.74]
[1747601646266,2.80957155,167.03,166.95,77.7269]
[1747601646468,2.80957155,167.02,166.95,77.7269]
[1747601646764,10.22826108,167.04,166.95,77.7269]
[1747601646970,2.80945726,167.03,166.95,77.7269]
[1747601647171,2.80945726,167.02,166.95,77.7269]
[1747601647370,10.22826108,167.04,166.95,77.7269]
[1747601647669,2.80973214,167.03,166.95,77.7269]
[1747601647871,10.22826108,167.04,166.95,77.7269]
[1747601648065,2.80959675,167.03,166.95,77.7269]
[1747601648271,5.9855,166.99,166.95,77.7269]
[1747601648472,10.22826108,167.04,166.95,71.74]
[1747601648674,5.9864,166.97,166.94,287.27251659]
[1747601649270,5.9866,166.96,166.94,287.27251659]
[1747601650268,5.9869,166.95,166.94,287.27251659]
[1747601652674,5.9866,166.96,166.94,287.27251659]
[1747601652878,10.22826108,167.01,166.94,287.27251659]
[1747601653072,5.9869,166.95,166.94,287.27251659]
[1747601653574,71.72,166.97,166.9,71.72]
[1747601653774,2.81066993,166.96,166.9,71.72]
[1747601653972,71.72,166.97,166.91,5.9883]
[1747601654179,2.81062994,166.96,166.9,71.72]
[1747601654475,71.72,166.97,166.9,71.72]
[1747601655181,2.0164,166.99,166.9,71.72]
[1747601655375,2.810648,166.98,166.9,71.72]
[1747601655674,2.81141562,166.97,166.9,71.72]
[1747601655874,12.24466108,166.99,166.9,71.72]
[1747601656075,2.81143557,166.98,166.9,71.72]
[1747601656277,5.9875,166.94,166.9,77.7084]
[1747601656676,5.9876,166.93,166.9,71.72]
[1747601656971,2.0164,166.99,166.9,71.72]
[1747601657176,5.9875,166.94,166.9,77.7087]
[1747601658181,5.9876,166.93,166.9,77.7087]
[1747601658682,5.9874,166.94,166.9,77.7087]
[1747601659785,5.9874,166.94,166.91,5.9883]
[1747601660182,5.56969444,167.03,166.9,71.72]
[1747601660385,2.81322368,167.02,166.91,10.22826108]
[1747601660684,5.9852,167.0,166.91,10.22826108]
[1747601660884,5.56969444,167.03,166.91,10.22826108]
[1747601661285,5.9851,167.0,166.96,5.9862]
[1747601661486,5.56969444,167.03,166.97,71.74]
[1747601661788,5.9851,167.0,166.97,71.74]
[1747601662685,5.9851,167.0,166.97,77.7261]
[1747601662890,75.7062,167.06,166.97,71.74]
[1747601663189,2.81374,167.05,166.97,71.74]
[1747601663492,5.9853,167.0,166.97,71.74]
[1747601663885,75.7062,167.06,166.97,71.74]
[1747601664085,2.81416121,167.05,166.97,71.74]
[1747601664385,2.81416121,167.04,166.97,71.74]
[1747601664584,2.81416121,167.03,166.97,71.74]
[1747601664785,2.81416121,167.02,166.97,71.74]
[1747601664990,75.7062,167.06,166.97,71.74]
[1747601665191,5.9855,166.99,166.97,71.74]
[1747601665389,10.22826108,167.05,166.97,71.74]
[1747601665689,2.81457787,167.04,166.97,71.74]
[1747601665889,10.22826108,167.05,166.97,71.74]
[1747601665890,5.9858,166.99,166.97,71.74]
[1747601666893,5.9858,166.98,166.97,71.74]
[1747601670095,9.53589444,167.06,166.97,71.74]
[1747601670296,2.81506639,167.05,166.97,71.74]
[1747601670485,2.81506639,167.04,166.97,71.74]
[1747601670690,5.9851,167.01,166.97,71.74]
[1747601671089,5.9852,167.0,166.97,71.74]
[1747601671298,81.25589444,167.06,166.97,71.74]
[1747601671497,2.81518397,167.05,166.97,71.74]
[1747601671690,5.9853,167.0,166.97,71.74]
[1747601671897,81.25589444,167.06,166.97,77.7261]
[1747601672098,2.81496376,167.05,166.97,77.7261]
[1747601672397,5.9846,167.02,166.97,77.7261]
[1747601672596,81.25589444,167.06,166.97,77.7261]
[1747601672798,2.81483211,167.05,166.97,77.7261]
[1747601672998,2.81483211,167.04,166.97,77.7261]
[1747601673193,5.985,167.01,166.97,71.74]
[1747601674098,5.9851,167.0,166.97,71.74]
[1747601674497,75.6862,167.06,166.97,71.74]
[1747601674696,2.81487528,167.05,166.97,71.74]
[1747601674897,2.81487528,167.04,166.97,71.74]
[1747601675196,2.81487528,167.03,166.97,71.74]
[1747601675400,5.9855,166.99,166.97,71.74]
[1747601676098,5.9858,166.98,166.97,71.74]
[1747601678296,5.56969444,167.07,166.97,77.72]
[1747601678501,5.56969444,167.07,166.97,81.96826108]
[1747601678699,5.9839,167.04,166.97,81.96826108]
[1747601678901,5.56969444,167.07,166.98,143.42]
[1747601679100,2.81945437,167.06,166.98,143.42]
[1747601679299,5.985,167.01,166.99,71.72]
[1747601679700,1.9904,167.05,166.99,71.72]
[1747601679903,2.81973947,167.04,166.99,71.72]
[1747601680197,2.81973947,167.03,166.99,71.72]
[1747601680399,2.81973947,167.02,166.99,71.72]
[1747601680597,5.9851,167.0,166.99,71.72]
[1747601681903,8.80466992,167.0,166.99,71.72]
[1747601683100,2.82000399,167.0,166.96,71.68]
[1747601683301,2.82000399,166.99,166.96,71.68]
[1747601683496,5.9864,166.97,166.96,71.68]
[1747601683702,2.82038341,166.97,166.93,7.34874812]
[1747601683904,2.82038341,166.96,166.93,7.34874812]
[1747601684099,5.9873,166.94,166.93,7.34874812]
[1747601684404,8.80768341,166.94,166.93,7.34874812]
[1747601684807,8.80768341,166.94,166.9,71.68]
[1747601684808,5.988,166.92,166.9,71.68]
[1747601685309,3.8395,166.97,166.9,71.68]
[1747601685604,2.81981669,166.96,166.9,71.68]
[1747601685800,2.81981669,166.95,166.9,71.68]
[1747601686000,2.81981669,166.94,166.9,71.68]
[1747601686200,3.8395,166.97,166.9,71.68]
[1747601686401,2.81969938,166.96,166.9,71.68]
[1747601686602,2.81969938,166.95,166.9,71.68]
[1747601686903,2.81969938,166.94,166.9,77.6686]
[1747601687108,3.8395,166.97,166.9,77.6686]
[1747601687299,2.81975131,166.96,166.9,71.68]
[1747601687495,8.80695131,166.95,166.91,5.9883]
[1747601687708,3.8395,166.97,166.91,5.9883]
[1747601687904,2.8192476,166.96,166.91,5.9883]
[1747601688210,2.8192476,166.95,166.91,5.9883]
[1747601688415,3.8395,166.97,166.9,77.6686]
[1747601688600,2.81884084,166.96,166.9,77.6686]
[1747601688905,2.81884084,166.95,166.9,77.6686]
[1747601689104,5.9875,166.94,166.9,77.6686]
[1747601690703,5.987,166.95,166.91,5.9883]
[1747601691110,3.8395,166.97,166.9,71.68]
[1747601691308,5.9873,166.94,166.9,77.6684]
[1747601692209,2.81790698,166.93,166.86,71.7]
[1747601692407,2.81748379,166.92,166.86,71.7]
[1747601692607,2.81748379,166.91,166.86,71.7]
[1747601692808,2.0639,166.93,166.86,71.7]
[1747601692998,2.81767323,166.92,166.86,71.7]
[1747601693203,2.81767323,166.91,166.86,71.7]
[1747601693509,5.9896,166.88,166.86,71.7]
[1747601694103,5.9898,166.87,166.84,524.54874812]
[1747601694308,71.68,166.89,166.84,7.34874812]
[1747601694613,5.9905,166.85,166.84,7.34874812]
[1747601695105,3.8092,166.88,166.82,215.37377492]
[1747601695709,1.9268,166.88,166.83,5.991]
[1747601696208,1.9268,166.88,166.82,215.37377492]
[1747601696513,5.9908,166.85,166.82,215.37377492]
[1747601696711,1.9268,166.88,166.82,215.37377492]
[1747601697114,2.81149497,166.87,166.82,215.37377492]
[1747601697315,5.9912,166.83,166.82,215.37377492]
[1747601700404,1.9268,166.88,166.82,215.37377492]